bitfinex/quotes_SOLUSD_20240930
["timestamp","ask_amount","ask_price","bid_price","bid_amount"]
[1727654668231,26.3072,158.55,158.48,39.965684]
[1727654668712,6.3076,158.54,158.48,39.965684]
[1727654668917,20.0,158.53,158.48,39.965684]
[1727654669624,15.95122603,158.56,158.49,7.57103485]
[1727654669829,0.12549,158.56,158.48,39.965684]
[1727654670121,6.3075,158.54,158.48,39.965684]
[1727654670528,6.43249,158.56,158.5,23.776884]
[1727654670823,6.3065,158.57,158.52,23.776884]
[1727654671022,6.3069,158.56,158.49,6.3094]
[1727654671338,6.5644,158.6,158.51,23.776884]
[1727654671627,6.5644,158.6,158.52,1.26141794]
[1727654672130,20.0,158.55,158.51,23.776884]
[1727654673827,6.3059,158.58,158.52,7.56972811]
[1727654674002,20.0,158.57,158.53,23.776884]
[1727654674201,20.0,158.57,158.54,1.26127972]
[1727654674602,6.3055,158.59,158.54,1.26127972]
[1727654674806,37.09850653,158.64,158.54,1.26127972]
[1727654674807,15.84422603,158.64,158.54,7.56877972]
[1727654675018,15.84422603,158.64,158.55,23.776884]
[1727654675227,6.3047,158.62,158.57,23.776884]
[1727654675534,6.3047,158.62,158.58,1.26096481]
[1727654675834,6.3047,158.62,158.57,23.776884]
[1727654676262,9.64422603,158.68,158.59,23.776884]
[1727654676531,31.0511,158.74,158.62,21.8478]
[1727654676712,6.3011,158.71,158.64,30.080384]
[1727654676921,6.3004,158.72,158.66,22.0593]
[1727654677124,6.3,158.73,158.67,7.56243479]
[1727654677531,12.60364191,158.76,158.7,6.3011]
[1727654677532,6.2988,158.76,158.7,6.3011]
[1727654677719,6.2996,158.74,158.71,1.26006546]
[1727654677923,6.2996,158.74,158.69,1.26003022]
[1727654678225,6.2992,158.76,158.69,7.56153022]
[1727654678410,6.2992,158.75,158.69,6.3015]
[1727654678616,6.2992,158.75,158.7,1.25993448]
[1727654679008,6.2992,158.75,158.69,6.3015]
[1727654679321,9.64422603,158.81,158.72,23.776884]
[1727654679525,6.298,158.78,158.73,1.25969277]
[1727654679724,6.0827,158.84,158.73,7.55949277]
[1727654679725,6.2975,158.8,158.73,7.55949277]
[1727654680026,6.2975,158.8,158.72,23.776884]
[1727654680027,6.2975,158.8,158.74,23.776884]
[1727654680435,6.2969,158.81,158.75,1.25955027]
[1727654680612,15.7376,158.86,158.76,23.776884]
[1727654680819,6.296,158.83,158.77,1.25938325]
[1727654681138,6.296,158.83,158.76,23.776884]
[1727654681318,6.296,158.83,158.76,30.075584]
[1727654681631,6.2956,158.84,158.78,30.074684]
[1727654681806,6.2952,158.86,158.79,1.25914444]
[1727654682010,6.2952,158.85,158.79,7.55664444]
[1727654682209,6.2949,158.86,158.8,30.074084]
[1727654682416,6.2949,158.86,158.78,39.521484]
[1727654682632,6.2952,158.85,158.78,45.819084]
[1727654683021,6.2952,158.85,158.8,23.776884]
[1727654684440,20.25098,158.87,158.74,15.7484]
[1727654684726,6.2959,158.84,158.77,23.776884]
[1727654684927,6.296,158.83,158.77,23.776884]
[1727654685238,6.2965,158.82,158.77,23.776884]
[1727654686433,29.76971603,158.87,158.77,23.776884]
[1727654686434,6.296,158.84,158.77,23.776884]
[1727654686736,6.296,158.83,158.77,23.776884]
[1727654688618,29.76971603,158.87,158.77,23.776884]
[1727654688619,0.12549,158.86,158.77,23.776884]
[1727654688818,6.2964,158.82,158.77,23.776884]
[1727654689216,6.296,158.83,158.77,23.776884]
[1727654689446,6.296,158.83,158.77,30.075184]
[1727654692044,20.12549,158.87,158.77,23.776884]
[1727654692218,20.12549,158.87,158.74,15.7484]
[1727654692219,0.12549,158.86,158.75,6.2989]
[1727654692426,0.12549,158.84,158.75,6.2989]
[1727654692931,6.2968,158.81,158.75,6.2989]
[1727654693348,0.12549,158.84,158.75,6.2989]
[1727654693522,6.2972,158.8,158.75,6.2989]
[1727654694447,6.2968,158.81,158.75,6.2989]
[1727654695022,6.2968,158.81,158.76,7.55815616]
[1727654695243,6.296,158.83,158.78,6.298]
[1727654695627,6.296,158.83,158.77,1.25938773]
[1727654695824,6.296,158.83,158.76,6.2984]
[1727654696044,6.296,158.83,158.77,23.776884]
[1727654696247,6.2964,158.82,158.77,23.776884]
[1727654698446,20.0,158.83,158.78,6.2978]
[1727654698749,6.2965,158.82,158.77,45.820884]
[1727654699324,6.2965,158.82,158.77,39.522584]
[1727654700548,6.2965,158.82,158.78,1.2593173]
[1727654700749,6.2965,158.82,158.77,45.820784]
[1727654702042,20.0,158.86,158.79,23.776884]
[1727654702243,20.0,158.86,158.78,1.25926341]
[1727654702244,6.296,158.83,158.78,6.2979]
[1727654702438,6.296,158.83,158.79,23.776884]
[1727654702635,20.0,158.86,158.79,23.776884]
[1727654702859,6.2953,158.85,158.8,30.07455965]
[1727654703354,0.8255677,158.9,158.81,39.518184]
[1727654703647,6.2945,158.87,158.83,23.776884]
[1727654703956,0.8255677,158.9,158.8,28.8153]
[1727654703957,6.2953,158.85,158.8,28.8153]
[1727654704131,6.2961,158.83,158.8,16.5112]
[1727654704452,6.2965,158.82,158.8,16.5112]
[1727654704632,6.296,158.83,158.8,16.5112]
[1727654704835,0.12549,158.87,158.81,1.25914005]
[1727654705035,6.2956,158.85,158.8,22.8083]
[1727654705236,0.12549,158.87,158.8,16.5112]
[1727654705439,6.296,158.83,158.8,16.5112]
[1727654705641,0.25098,158.87,158.8,16.5112]
[1727654705854,6.2961,158.83,158.8,16.5112]
[1727654707956,0.25098,158.87,158.8,16.5112]
[1727654707957,6.2956,158.85,158.8,16.5112]
[1727654708166,6.2952,158.85,158.81,1.25912536]
[1727654708530,6.2952,158.85,158.8,22.8083]
[1727654709848,20.25098,158.85,158.76,22.1891]
[1727654710055,20.25098,158.85,158.76,15.6976]
[1727654710355,20.25098,158.85,158.72,6.3802]
[1727654710356,6.2985,158.77,158.72,44.1289]
[1727654710958,6.2981,158.78,158.73,6.2999]
[1727654711553,6.2975,158.8,158.74,7.55886823]
[1727654711940,20.12549,158.83,158.72,37.8286]
[1727654712146,6.2984,158.77,158.73,6.2999]
[1727654713059,6.2981,158.78,158.73,6.2999]
[1727654713254,20.12549,158.81,158.72,37.8286]
[1727654713445,6.2984,158.77,158.72,44.1289]
[1727654713832,0.12549,158.8,158.73,1.25970399]
[1727654714136,6.2976,158.79,158.74,6.2995]
[1727654714340,20.12549,158.81,158.73,6.2999]
[1727654714341,6.298,158.78,158.73,6.2999]
[1727654714541,20.0,158.81,158.73,23.776884]
[1727654714741,0.12549,158.8,158.73,23.776884]
[1727654714960,6.298,158.78,158.73,30.076784]
[1727654715464,6.2971,158.81,158.76,6.2987]
[1727654715753,6.2971,158.81,158.77,1.25943526]
[1727654715956,6.2972,158.8,158.75,30.076084]
[1727654719037,20.0,158.84,158.75,23.776884]
[1727654719038,6.2976,158.79,158.75,23.776884]
[1727654720652,5.06024989,158.78,158.75,23.776884]
[1727654721446,5.06024989,158.77,158.75,23.776884]
[1727654721761,20.25098,158.75,158.66,16.368]
[1727654722064,20.0,158.73,158.66,16.368]
[1727654722244,5.06024989,158.72,158.66,16.368]
[1727654722445,5.06024989,158.71,158.66,16.368]
[1727654722663,11.36144989,158.7,158.63,22.0462]
[1727654722871,5.06024989,158.69,158.63,22.0462]
[1727654723041,11.36254989,158.68,158.62,15.3896]
[1727654723243,6.3024,158.67,158.62,15.3896]
[1727654723445,6.3028,158.66,158.62,15.3896]
[1727654723656,6.3032,158.65,158.59,22.0787]
[1727654723869,5.06024989,158.67,158.59,22.0787]
[1727654724042,20.0,158.73,158.59,6.3149]
[1727654724043,11.36324989,158.66,158.59,6.3149]
[1727654724243,5.06024989,158.65,158.59,6.3149]
[1727654724445,5.06024989,158.64,158.59,6.3149]
[1727654724640,5.06024989,158.63,158.59,6.3149]
[1727654724875,5.06024989,158.62,158.59,6.3149]
[1727654725163,6.303,158.66,158.59,6.3149]
[1727654725374,5.04338186,158.65,158.59,6.3149]
[1727654725582,5.04338186,158.64,158.59,6.3149]
[1727654725868,5.04338186,158.63,158.58,6.3058]
[1727654726163,6.2904,158.7,158.57,6.3062]
[1727654726164,6.3036,158.64,158.57,6.3062]
[1727654726473,6.3036,158.64,158.55,6.3068]
[1727654726673,5.03854576,158.63,158.55,6.3068]
[1727654727049,5.03854576,158.62,158.55,6.3068]
[1727654727256,6.3041,158.63,158.55,6.3068]
[1727654727457,6.3041,158.63,158.56,20.0]
[1727654727671,6.3026,158.67,158.57,1.26087442]
[1727654727872,6.3026,158.67,158.59,6.3054]
[1727654728078,5.03182453,158.66,158.59,6.3054]
[1727654728248,5.03182453,158.66,158.61,6.3046]
[1727654728446,5.03182453,158.65,158.6,23.776884]
[1727654728659,6.3029,158.66,158.6,23.776884]
[1727654728970,5.02815425,158.65,158.6,23.776884]
[1727654729151,6.3029,158.66,158.6,23.776884]
[1727654729352,6.3022,158.68,158.62,23.776884]
[1727654729764,6.3024,158.67,158.61,23.776884]
[1727654730044,6.2904,158.7,158.61,23.776884]
[1727654730261,6.3028,158.66,158.6,15.7623]
[1727654730458,6.2904,158.7,158.6,15.7623]
[1727654730663,6.3032,158.65,158.6,15.7623]
[1727654731169,6.3032,158.65,158.55,20.0]
[1727654731170,6.3036,158.64,158.57,6.306]
[1727654731555,6.3036,158.64,158.58,6.3059]
[1727654731752,6.3036,158.64,158.59,1.26073583]
[1727654732599,6.3031,158.66,158.6,23.776884]
[1727654732880,6.3016,158.69,158.63,6.3039]
[1727654733175,6.3016,158.69,158.64,1.26038114]
[1727654733361,6.3016,158.69,158.64,25.03726514]
[1727654734087,6.3016,158.69,158.64,23.776884]
[1727654734569,20.25098,158.72,158.63,23.776884]
[1727654734776,6.3023,158.67,158.62,15.7603]
[1727654735371,29.70966714,158.72,158.63,25.03739576]
[1727654735551,6.3016,158.69,158.64,6.3035]
[1727654735879,15.7507,158.73,158.63,25.03739576]
[1727654735880,6.3008,158.71,158.65,7.56343333]
[1727654736067,0.12549,158.73,158.64,6.3035]
[1727654737081,6.3016,158.69,158.64,6.3035]
[1727654737668,6.3016,158.69,158.65,1.2603592]
[1727654738261,6.3016,158.69,158.64,6.3035]
[1727654738966,6.3016,158.69,158.65,1.26036004]
[1727654739485,0.25098,158.73,158.61,29.1646]
[1727654739486,6.3028,158.66,158.61,29.1646]
[1727654739796,6.3034,158.65,158.6,6.3051]
[1727654741781,6.3024,158.67,158.62,6.3043]
[1727654742016,15.7501,158.73,158.62,15.7609]
[1727654742174,15.7501,158.73,158.63,23.776884]
[1727654742573,22.286,158.74,158.63,23.776884]
[1727654742879,22.286,158.74,158.66,23.776884]
[1727654743094,22.286,158.74,158.67,1.26016254]
[1727654743266,22.286,158.74,158.66,30.079584]
[1727654744162,0.12549,158.73,158.66,30.079584]
[1727654744981,15.7465,158.77,158.69,6.3015]
[1727654745289,15.7465,158.77,158.7,1.25992396]
[1727654745861,15.7465,158.77,158.69,6.3015]
[1727654746272,0.12549,158.76,158.69,6.3015]
[1727654746489,9.70966714,158.76,158.68,23.776884]
[1727654747871,9.70966714,158.76,158.67,23.776884]
[1727654748275,9.70966714,158.76,158.66,23.776884]
[1727654748792,9.70966714,158.76,158.66,30.079584]
[1727654749484,0.12549,158.74,158.67,1.26016562]
[1727654749781,0.12549,158.74,158.67,7.56236562]
[1727654749986,20.0,158.77,158.68,23.776884]
[1727654750212,22.2578,158.78,158.7,23.776884]
[1727654750365,6.5944,158.78,158.71,7.5605012]
[1727654752559,6.5944,158.78,158.72,30.077184]
[1727654752786,6.2984,158.77,158.73,1.25968959]
[1727654753085,0.12549,158.8,158.72,30.077184]
[1727654753270,6.2988,158.76,158.72,23.776884]
[1727654757091,6.2992,158.75,158.71,23.776884]
[1727654759191,0.25098,158.8,158.72,1.25979825]
[1727654759395,6.2984,158.77,158.73,23.776884]
[1727654759572,6.2984,158.77,158.74,1.25968072]
[1727654759887,6.2984,158.77,158.73,23.776884]
[1727654759888,6.2973,158.8,158.75,7.55876895]
[1727654760079,5.04140111,158.79,158.76,6.2987]
[1727654760284,6.2969,158.81,158.77,23.776884]
[1727654760464,36.9953,158.86,158.77,23.776884]
[1727654760465,21.2573,158.86,158.77,23.776884]
[1727654760671,6.2978,158.79,158.74,30.076384]
[1727654762489,6.2985,158.77,158.73,15.7492]
[1727654762701,0.25098,158.81,158.7,15.7527]
[1727654763001,6.3,158.73,158.68,15.5333]
[1727654763367,6.3004,158.72,158.67,22.0579]
[1727654763591,6.3011,158.7,158.65,6.3028]
[1727654763793,6.3007,158.72,158.66,6.3026]
[1727654764000,6.3011,158.71,158.65,6.3031]
[1727654764486,6.3013,158.7,158.65,6.3031]
[1727654764690,0.25098,158.75,158.67,6.3022]
[1727654764994,6.3169,158.78,158.66,1.26021735]
[1727654764995,0.25098,158.77,158.68,1.26007537]
[1727654765183,0.25098,158.77,158.66,15.7561]
[1727654765184,0.25098,158.77,158.69,1.25995102]
[1727654765388,5.03678112,158.74,158.69,1.25995102]
[1727654765691,0.25098,158.77,158.66,15.7561]
[1727654765894,5.03974361,158.76,158.67,23.776884]
[1727654766097,6.3,158.73,158.68,6.3019]
[1727654766572,6.2997,158.74,158.69,7.56151972]
[1727654766771,6.2997,158.74,158.7,23.776884]
[1727654768090,0.12549,158.77,158.68,23.776884]
[1727654768287,6.3,158.73,158.69,23.776884]
[1727654769588,0.25098,158.77,158.66,15.7561]
[1727654769797,0.12549,158.75,158.67,23.776884]
[1727654770095,0.12549,158.75,158.66,15.7561]
[1727654770096,6.3012,158.7,158.66,15.7561]
[1727654770503,6.3017,158.69,158.64,21.8368]
[1727654770687,6.3017,158.69,158.64,6.3035]
[1727654771684,6.302,158.68,158.63,22.0635]
[1727654772692,0.12549,158.75,158.6,38.0301]
[1727654772693,6.3032,158.65,158.6,38.0301]
[1727654772874,6.3032,158.65,158.6,22.0678]
[1727654773075,6.3036,158.64,158.6,15.7627]
[1727654773804,6.3032,158.65,158.6,22.0678]
[1727654774173,0.12549,158.69,158.61,1.2606422]
[1727654774374,6.3027,158.67,158.62,6.3042]
[1727654774586,11.33955521,158.68,158.63,7.56441748]
[1727654774780,5.03755521,158.67,158.63,7.56441748]
[1727654774987,5.03755521,158.66,158.63,7.56441748]
[1727654775182,12.618,158.7,158.64,30.080084]
[1727654775398,5.03845253,158.69,158.64,30.080084]
[1727654775697,5.03845253,158.68,158.64,30.080084]
[1727654775879,6.302,158.68,158.63,30.080784]
[1727654778204,5.0390476,158.67,158.63,30.080784]
[1727654778384,6.302,158.68,158.63,30.080784]
[1727654778587,5.0401532,158.67,158.63,23.776884]
[1727654778803,6.3025,158.67,158.63,23.776884]
[1727654778983,6.3025,158.67,158.63,30.080784]
[1727654780205,6.3025,158.67,158.64,1.2604654]
[1727654780381,6.3019,158.69,158.64,7.5636654]
[1727654780697,6.3019,158.69,158.64,6.3032]
[1727654781090,10.08523838,158.68,158.64,6.3032]
[1727654781296,5.04262874,158.67,158.64,6.3032]
[1727654781495,11.34502874,158.67,158.63,23.776884]
[1727654781688,6.3024,158.67,158.63,23.776884]
[1727654785703,5.04260964,158.68,158.65,23.776884]
[1727654786289,5.04260964,158.68,158.65,30.079884]
[1727654786511,5.04260964,158.68,158.67,50.079184]
[1727654786808,5.04260964,158.68,158.67,50.330164]
[1727654787308,22.05277405,158.8,158.71,15.751]
[1727654787309,15.4601,158.8,158.71,15.751]
[1727654787611,6.3106,158.83,158.74,23.776884]
[1727654787798,6.3106,158.83,158.74,30.076384]
[1727654788114,6.2977,158.79,158.74,30.076384]
[1727654788308,22.0515,158.83,158.73,15.749]
[1727654788613,6.2984,158.77,158.73,15.749]
[1727654788820,6.298,158.78,158.74,1.25967735]
[1727654789609,6.298,158.78,158.74,23.776884]
[1727654790523,6.2968,158.81,158.76,6.2987]
[1727654790695,16.2475,158.84,158.77,31.33445319]
[1727654790897,16.2475,158.84,158.76,15.7468]
[1727654790898,6.2968,158.81,158.76,15.7468]
[1727654791301,6.2974,158.8,158.75,6.2988]
[1727654791600,6.2974,158.8,158.76,1.2594777]
[1727654793513,6.2968,158.81,158.77,25.03636042]
[1727654793837,6.2964,158.82,158.77,25.03636042]
[1727654794001,6.2964,158.82,158.77,23.776884]
[1727654794513,6.2964,158.82,158.77,53.776884]
[1727654795320,6.2964,158.82,158.78,1.25933631]
[1727654796116,6.2964,158.82,158.77,60.075184]
[1727654796798,0.25098,158.83,158.74,15.2212]
[1727654797122,6.2976,158.8,158.75,1.25958201]
[1727654798003,0.25098,158.83,158.74,21.5207]
[1727654798228,0.25098,158.83,158.73,15.7498]
[1727654798229,15.99198,158.83,158.73,15.7498]
[1727654799308,0.12549,158.81,158.74,1.25967559]
[1727654799832,4.96587779,158.8,158.74,1.25967559]
[1727654800119,6.2976,158.79,158.74,6.2995]
[1727654802022,6.2985,158.77,158.73,15.7498]
[1727654802941,6.3004,158.72,158.68,6.3019]
[1727654803100,6.3009,158.71,158.66,37.8187]
[1727654803418,6.3012,158.7,158.66,31.5163]
[1727654804007,0.12549,158.76,158.64,6.2567]
[1727654804224,15.9779,158.77,158.64,6.2567]
[1727654804225,6.3017,158.69,158.64,12.5602]
[1727654804799,6.3012,158.7,158.65,6.3031]
[1727654805009,6.3012,158.7,158.65,1.26030927]
[1727654805319,6.3017,158.69,158.64,12.5602]
[1727654806636,6.3017,158.69,158.65,23.776884]
[1727654806802,6.3012,158.7,158.65,23.776884]
[1727654807010,6.3012,158.7,158.66,1.26033768]
[1727654812825,6.3004,158.72,158.67,30.079084]
[1727654813015,6.3004,158.72,158.68,1.2601283]
[1727654813537,6.3,158.73,158.68,7.5620283]
[1727654814009,22.2763,158.77,158.72,6.3002]
[1727654814349,6.2989,158.76,158.73,1.2598992]
[1727654814513,6.2989,158.76,158.71,6.3007]
[1727654814710,6.2989,158.76,158.7,15.7522]
[1727654814711,6.2989,158.76,158.72,7.56010902]
[1727654814939,6.2981,158.78,158.73,30.076784]
[1727654815143,15.0248,158.81,158.72,15.7501]
[1727654815638,6.2991,158.76,158.71,6.3004]
[1727654817136,0.12549,158.8,158.73,23.776884]
[1727654817441,0.12549,158.8,158.74,1.25966638]
[1727654817636,15.0248,158.81,158.74,1.25966638]
[1727654817844,6.2976,158.79,158.74,7.55886638]
[1727654818511,6.298,158.78,158.75,1.2595744]
[1727654818915,6.2976,158.79,158.75,1.2595744]
[1727654819918,6.298,158.78,158.74,23.776884]
[1727654820540,0.25098,158.8,158.67,6.5369]
[1727654820724,0.25098,158.8,158.68,6.3019]
[1727654820725,6.3,158.73,158.68,6.3019]
[1727654821038,7.82683381,158.8,158.67,15.7557]
[1727654821039,6.3008,158.71,158.67,15.7557]
[1727654821337,6.3008,158.71,158.66,6.3026]
[1727654822445,0.12549,158.75,158.64,15.7587]
[1727654822446,6.3019,158.68,158.64,15.7587]
[1727654822637,0.25098,158.72,158.59,21.8826]
[1727654823032,6.3027,158.67,158.59,21.8826]
[1727654823644,0.25098,158.72,158.64,15.7589]
[1727654823842,6.3019,158.69,158.64,22.0624]
[1727654824050,6.3019,158.69,158.65,23.776884]
[1727654825657,6.3007,158.72,158.66,1.26036132]
[1727654825843,16.2416,158.73,158.66,1.26023349]
[1727654826163,0.25098,158.72,158.61,15.7618]
[1727654826336,0.25098,158.7,158.61,15.7618]
[1727654826650,6.3028,158.66,158.61,15.7618]
[1727654826849,6.3022,158.68,158.62,6.3039]
[1727654827048,0.25098,158.7,158.62,1.26064149]
[1727654827257,6.3015,158.69,158.62,1.26064149]
[1727654827636,6.3015,158.69,158.63,23.776884]
[1727654827831,6.0921,158.71,158.65,30.079884]
[1727654828040,6.3008,158.71,158.66,7.5628561]
[1727654828244,6.3012,158.7,158.65,30.079984]
[1727654828954,16.2416,158.73,158.66,1.26025376]
[1727654829156,22.5419,158.73,158.68,6.3019]
[1727654829367,22.5419,158.73,158.69,1.26017138]
[1727654829658,6.0474,158.75,158.7,1.26013819]
[1727654829835,6.2995,158.75,158.7,6.3011]
[1727654830032,6.2985,158.77,158.72,30.077084]
[1727654830241,6.2985,158.77,158.73,1.25979774]
[1727654830447,21.6669,158.78,158.73,6.2999]
[1727654830641,6.4129,158.79,158.74,1.25977344]
[1727654830850,39.37155381,158.82,158.72,23.776884]
[1727654831153,6.298,158.78,158.72,30.076884]
[1727654831353,8.84581094,158.81,158.72,23.776884]
[1727654831558,6.2989,158.76,158.72,23.776884]
[1727654832139,0.12549,158.78,158.68,23.776884]
[1727654832762,0.25098,158.78,158.68,23.776884]
[1727654833264,6.2996,158.74,158.69,6.3014]
[1727654833633,15.7441,158.79,158.7,25.0368752]
[1727654833868,6.2989,158.76,158.71,6.3007]
[1727654834867,16.0545,158.82,158.73,6.2998]
[1727654834868,6.298,158.78,158.73,6.2998]
[1727654835073,16.0545,158.82,158.76,23.776884]
[1727654835375,6.2968,158.81,158.76,23.776884]
[1727654835548,6.2974,158.8,158.76,23.776884]
[1727654836661,16.0545,158.82,158.75,15.7479]
[1727654836662,6.2978,158.79,158.75,15.7479]
[1727654836969,6.2978,158.79,158.74,6.2995]
[1727654837173,6.2984,158.77,158.73,23.776884]
[1727654838763,16.0545,158.82,158.71,23.776884]
[1727654838764,6.2992,158.75,158.71,23.776884]
[1727654839158,0.25098,158.81,158.72,1.25983627]
[1727654839450,16.0545,158.82,158.74,6.2995]
[1727654839451,6.2976,158.79,158.74,6.2995]
[1727654839661,6.2968,158.81,158.76,30.075584]
[1727654839851,6.2968,158.81,158.77,1.25942647]
[1727654840464,6.2968,158.81,158.77,23.776884]
[1727654840769,6.2968,158.81,158.76,23.776884]
[1727654841137,22.3509,158.82,158.77,6.2984]
[1727654841360,22.3509,158.82,158.78,1.25936545]
[1727654841576,6.2964,158.82,158.78,1.25936545]
[1727654841742,6.2968,158.81,158.78,1.25936545]
[1727654841945,6.2968,158.81,158.77,1.25936661]
[1727654842145,6.2972,158.8,158.76,23.776884]
[1727654844064,6.2968,158.81,158.76,23.776884]
[1727654847066,0.12549,158.82,158.76,23.776884]
[1727654847254,32.0695,158.86,158.78,23.776884]
[1727654847575,6.2965,158.82,158.78,23.776884]
[1727654849147,16.3324,158.86,158.78,23.776884]
[1727654849350,8.30594641,158.88,158.75,46.9828]
[1727654849351,0.7300926,158.88,158.82,23.776884]
[1727654849564,6.2949,158.86,158.82,30.073184]
[1727654849761,6.5540383,158.85,158.82,23.776884]
[1727654850055,6.2949,158.86,158.82,23.776884]
[1727654850258,6.2956,158.84,158.79,15.7431]
[1727654850570,6.2956,158.84,158.8,23.776884]
[1727654851778,0.7300926,158.88,158.83,23.776884]
[1727654852163,7.0240926,158.88,158.83,30.072784]
[1727654852354,0.7300926,158.88,158.84,6.2955]
[1727654852554,7.0241926,158.88,158.83,6.2959]
[1727654852754,7.0241926,158.88,158.84,23.776884]
[1727654853465,6.2945,158.87,158.84,23.776884]
[1727654853774,6.2945,158.87,158.83,23.776884]
[1727654854900,0.7300926,158.88,158.82,23.776884]
[1727654855179,0.25098,158.87,158.75,22.104]
[1727654855384,6.2965,158.82,158.77,6.2981]
[1727654856688,6.2973,158.8,158.75,37.5333]
[1727654857179,6.2973,158.8,158.75,22.0465]
[1727654857661,0.12549,158.84,158.76,6.2987]
[1727654857864,6.2969,158.81,158.77,23.776884]
[1727654862783,0.25098,158.84,158.77,23.776884]
[1727654862992,6.298,158.78,158.75,23.776884]
[1727654863195,31.0513,158.83,158.74,6.2995]
[1727654863480,6.2979,158.79,158.74,6.2995]
[1727654863690,0.12549,158.82,158.73,6.2999]
[1727654863691,6.2981,158.78,158.73,6.2999]
[1727654865188,6.2981,158.78,158.74,23.776884]
[1727654867161,0.25098,158.82,158.74,23.776884]
[1727654867400,0.25098,158.82,158.7,6.3011]
[1727654867401,6.2993,158.75,158.7,6.3011]
[1727654867692,6.2985,158.77,158.72,6.3003]
[1727654868689,6.2985,158.77,158.73,23.776884]
[1727654869689,6.298,158.78,158.73,30.076484]
[1727654869897,6.298,158.78,158.75,23.776884]
[1727654870188,6.2976,158.79,158.75,23.776884]
[1727654870768,6.2973,158.8,158.75,30.075984]
[1727654870991,11.28376073,158.79,158.75,23.776884]
[1727654871291,6.2976,158.79,158.75,23.776884]
[1727654871469,4.98809092,158.78,158.75,23.776884]
[1727654871813,6.2976,158.79,158.75,23.776884]
[1727654872097,4.9880915,158.78,158.75,23.776884]
[1727654872393,6.2976,158.79,158.75,23.776884]
[1727654872592,4.99036377,158.78,158.75,23.776884]
[1727654872794,6.2976,158.79,158.75,23.776884]
[1727654872996,4.99036377,158.78,158.75,23.776884]
[1727654873184,6.2976,158.79,158.75,23.776884]
[1727654873489,6.2985,158.77,158.72,22.0505]
[1727654873699,6.2985,158.77,158.73,23.776884]
[1727654874194,11.29445871,158.76,158.73,23.776884]
[1727654874495,4.99561607,158.75,158.73,23.776884]
[1727654874829,6.2989,158.76,158.73,23.776884]
[1727654875174,4.9956413,158.75,158.73,23.776884]
[1727654875373,4.9956413,158.75,158.69,15.7536]
[1727654875572,15.369,158.76,158.69,15.7536]
[1727654875573,4.99768568,158.74,158.69,15.7536]
[1727654875794,11.29768568,158.73,158.69,15.7536]
[1727654875999,6.2996,158.74,158.69,22.0551]
[1727654877095,4.99777414,158.73,158.69,22.0551]
[1727654877295,6.2992,158.75,158.7,30.077984]
[1727654877595,4.99719081,158.74,158.7,23.776884]
[1727654877791,15.369,158.76,158.71,6.3006]
[1727654877792,21.6678,158.76,158.71,6.3006]
[1727654878003,21.6678,158.76,158.72,23.776884]
[1727654878306,4.99711437,158.75,158.72,23.776884]
[1727654878607,4.99711437,158.74,158.72,23.776884]
[1727654878811,21.6678,158.76,158.72,23.776884]
[1727654879475,4.99720228,158.75,158.72,23.776884]
[1727654881303,21.6678,158.76,158.72,23.776884]
[1727654881503,6.2992,158.75,158.72,23.776884]
[1727654882025,21.6678,158.76,158.72,23.776884]
[1727654882304,15.9131,158.8,158.72,23.776884]
[1727654882501,6.2981,158.78,158.73,6.2998]
[1727654882691,6.2981,158.78,158.74,23.776884]
[1727654882895,6.297,158.81,158.77,6.2983]
[1727654883105,6.297,158.81,158.75,15.7479]
[1727654883106,15.9131,158.84,158.78,30.074784]